[Event "Early Titled Tuesday Blitz | February 8 2022"]
[White "Martirosyan, Haik M."]
[Black "Papasimakopoulos, Alexandros"]
[WhiteFideId "13306553"]
[BlackFideId "4244125"]
[WhiteElo "2735"]
[BlackElo "2340"]
[Result "1-0"]
[Round "09"]
[TimeControl "180+1"]
[Date "2022.02.08"]
[WhiteClock "0:00:14"]
[BlackClock "0:00:05"]

1. c4 {[%clk 0:03:00]}  c5 {[%clk 0:02:57]} 2. Nc3 {[%clk 0:03:00]}  Nc6 {[%clk 0:02:56]} 3. g3 {[%clk 0:03:00]}  Nf6 {[%clk 0:02:56]} 4. Bg2 {[%clk 0:03:00]}  e6 {[%clk 0:02:56]} 5. Nf3 {[%clk 0:03:00]}  d5 {[%clk 0:02:56]} 6. cxd5 {[%clk 0:03:00]}  Nxd5 {[%clk 0:02:57]} 7. O-O {[%clk 0:02:58]}  Nxc3 {[%clk 0:02:51]} 8. bxc3 {[%clk 0:02:58]}  Be7 {[%clk 0:02:50]} 9. d4 {[%clk 0:02:58]}  O-O {[%clk 0:02:47]} 10. Rb1 {[%clk 0:02:55]}  Qa5 {[%clk 0:02:43]} 11. Qb3 {[%clk 0:02:48]}  Rd8 {[%clk 0:02:40]} 12. Rd1 {[%clk 0:02:47]}  Bf6 {[%clk 0:02:30]} 13. e3 {[%clk 0:02:37]}  Qc7 {[%clk 0:02:25]} 14. Ba3 {[%clk 0:02:31]}  Na5 {[%clk 0:02:08]} 15. Qb5 {[%clk 0:02:28]}  cxd4 {[%clk 0:02:01]} 16. cxd4 {[%clk 0:02:25]}  Bd7 {[%clk 0:02:01]} 17. Qe2 {[%clk 0:02:08]}  Qc4 {[%clk 0:01:53]} 18. Qe1 {[%clk 0:01:52]}  Qa4 {[%clk 0:01:53]} 19. Qb4 {[%clk 0:01:33]}  Nc4 {[%clk 0:01:45]} 20. Rd3 {[%clk 0:01:08]}  Nxa3 {[%clk 0:01:32]} 21. Qxa3 {[%clk 0:01:09]}  Qxa3 {[%clk 0:01:24]} 22. Rxa3 {[%clk 0:01:09]}  Bc6 {[%clk 0:01:24]} 23. Ne1 {[%clk 0:01:09]}  Be7 {[%clk 0:01:19]} 24. Rc3 {[%clk 0:01:05]}  Bxg2 {[%clk 0:01:14]} 25. Kxg2 {[%clk 0:01:05]}  b6 {[%clk 0:01:15]} 26. Rbc1 {[%clk 0:01:02]}  Bb4 {[%clk 0:01:12]} 27. Rc7 {[%clk 0:01:03]}  Bd6 {[%clk 0:01:09]} 28. R7c6 {[%clk 0:01:01]}  Kf8 {[%clk 0:01:08]} 29. Nf3 {[%clk 0:00:52]}  Ke7 {[%clk 0:01:06]} 30. Ng5 {[%clk 0:00:47]}  h6 {[%clk 0:00:51]} 31. Ne4 {[%clk 0:00:46]}  Rd7 {[%clk 0:00:49]} 32. a4 {[%clk 0:00:45]}  Rb8 {[%clk 0:00:48]} 33. f4 {[%clk 0:00:43]}  a6 {[%clk 0:00:43]} 34. Rb1 {[%clk 0:00:42]}  Bc7 {[%clk 0:00:31]} 35. g4 {[%clk 0:00:43]}  Rb7 {[%clk 0:00:29]} 36. Kf3 {[%clk 0:00:42]}  Rb8 {[%clk 0:00:24]} 37. h4 {[%clk 0:00:41]}  Kd8 {[%clk 0:00:20]} 38. h5 {[%clk 0:00:40]}  Kc8 {[%clk 0:00:20]} 39. g5 {[%clk 0:00:33]}  Kb7 {[%clk 0:00:19]} 40. Rc2 {[%clk 0:00:31]}  Ka7 {[%clk 0:00:19]} 41. g6 {[%clk 0:00:27]}  f5 {[%clk 0:00:15]} 42. Nf2 {[%clk 0:00:26]}  Rb7 {[%clk 0:00:14]} 43. Nd3 {[%clk 0:00:25]}  Bd6 {[%clk 0:00:15]} 44. Rc6 {[%clk 0:00:25]}  b5 {[%clk 0:00:11]} 45. axb5 {[%clk 0:00:24]}  axb5 {[%clk 0:00:11]} 46. Ra1+ {[%clk 0:00:21]}  Kb8 {[%clk 0:00:11]} 47. Raa6 {[%clk 0:00:21]}  Be7 {[%clk 0:00:08]} 48. Rxe6 {[%clk 0:00:21]}  b4 {[%clk 0:00:09]} 49. Ne5 {[%clk 0:00:22]}  Rdc7 {[%clk 0:00:05]} 50. Nc6+ {[%clk 0:00:22]}  Kc8 {[%clk 0:00:05]} 51. d5 {[%clk 0:00:20]}  b3 {[%clk 0:00:04]} 52. Ra8+ {[%clk 0:00:21]}  Kd7 {[%clk 0:00:04]} 53. Rxe7+ {[%clk 0:00:20]}  Kd6 {[%clk 0:00:05]} 54. Rd8+ {[%clk 0:00:18]}  Kc5 {[%clk 0:00:05]} 55. Rxc7 {[%clk 0:00:17]}  Rxc7 {[%clk 0:00:06]} 56. Rb8 {[%clk 0:00:17]}  Kxd5 {[%clk 0:00:06]} 57. Nd4 {[%clk 0:00:17]}  Rc1 {[%clk 0:00:05]} 58. Rxb3 {[%clk 0:00:16]}  Rh1 {[%clk 0:00:06]} 59. Rb5+ {[%clk 0:00:15]}  Kc4 {[%clk 0:00:05]} 60. Rxf5 {[%clk 0:00:16]}  Kd3 {[%clk 0:00:06]} 61. Re5 {[%clk 0:00:15]}  Rf1+ {[%clk 0:00:06]} 62. Kg2 {[%clk 0:00:15]}  Ra1 {[%clk 0:00:06]} 63. f5 {[%clk 0:00:14]}  Ra2+ {[%clk 0:00:04]} 64. Kf3 {[%clk 0:00:14]}  Ra1 {[%clk 0:00:05]} 65. Re7 {[%clk 0:00:14]}  Rf1+ {[%clk 0:00:05]} 66. Kg2 {[%clk 0:00:14]} 1-0


[Site "https://www.chess.com"]

[Event "Early Titled Tuesday Blitz | February 8 2022"]
[White "Mayaud, Raphael"]
[Black "Farmani Anosheh, Armin"]
[WhiteFideId "627151"]
[BlackFideId "24613240"]
[WhiteElo "2191"]
[BlackElo "2289"]
[Result "1/2-1/2"]
[Round "09"]
[TimeControl "180+1"]
[Date "2022.02.08"]
[WhiteClock "0:00:22"]
[BlackClock "0:01:48"]

1. d4 {[%clk 0:03:00]}  d5 {[%clk 0:02:58]} 2. c4 {[%clk 0:03:00]}  c6 {[%clk 0:02:59]} 3. Nf3 {[%clk 0:03:00]}  Nf6 {[%clk 0:02:58]} 4. Nc3 {[%clk 0:03:01]}  e6 {[%clk 0:02:59]} 5. Bg5 {[%clk 0:03:00]}  dxc4 {[%clk 0:02:52]} 6. e4 {[%clk 0:02:59]}  b5 {[%clk 0:02:52]} 7. e5 {[%clk 0:03:00]}  h6 {[%clk 0:02:53]} 8. Bh4 {[%clk 0:03:00]}  g5 {[%clk 0:02:53]} 9. exf6 {[%clk 0:03:00]}  gxh4 {[%clk 0:02:50]} 10. Ne5 {[%clk 0:03:01]}  Qxf6 {[%clk 0:02:31]} 11. a4 {[%clk 0:02:59]}  Bb4 {[%clk 0:02:27]} 12. Be2 {[%clk 0:02:59]}  Bb7 {[%clk 0:02:15]} 13. Bf3 {[%clk 0:02:57]}  a6 {[%clk 0:02:15]} 14. axb5 {[%clk 0:02:57]}  axb5 {[%clk 0:02:16]} 15. Rxa8 {[%clk 0:02:56]}  Bxa8 {[%clk 0:02:17]} 16. Qa1 {[%clk 0:02:56]}  O-O {[%clk 0:01:48]} 17. Qxa8 {[%clk 0:02:53]}  Nd7 {[%clk 0:01:48]} 18. Nxd7 {[%clk 0:01:45]}  Qxd4 {[%clk 0:01:46]} 19. Nxf8 {[%clk 0:00:55]}  Bxc3+ {[%clk 0:01:45]} 20. bxc3 {[%clk 0:00:34]}  Qxc3+ {[%clk 0:01:46]} 21. Kd1 {[%clk 0:00:26]}  Qd3+ {[%clk 0:01:47]} 22. Ke1 {[%clk 0:00:23]}  Qc3+ {[%clk 0:01:48]} 23. Kd1 {[%clk 0:00:23]}  Qd3+ {[%clk 0:01:48]} 24. Ke1 {[%clk 0:00:22]}  Qc3+ {[%clk 0:01:48]} 25. Kd1 {[%clk 0:00:22]} 1/2-1/2


[Site "https://www.chess.com"]

[Event "Early Titled Tuesday Blitz | February 8 2022"]
[White "Mirzanurov, Bulat"]
[Black "Loay, Sameer"]
[WhiteFideId "4184521"]
[BlackFideId "8104239"]
[WhiteElo "2116"]
[BlackElo "2040"]
[Result "0-1"]
[Round "09"]
[TimeControl "180+1"]
[Date "2022.02.08"]
[WhiteClock "0:00:04"]
[BlackClock "0:01:20"]

1. e4 {[%clk 0:03:00]}  d6 {[%clk 0:02:58]} 2. d4 {[%clk 0:03:00]}  g6 {[%clk 0:02:58]} 3. Nc3 {[%clk 0:02:56]}  Bg7 {[%clk 0:02:59]} 4. Be3 {[%clk 0:02:56]}  a6 {[%clk 0:03:00]} 5. Qd2 {[%clk 0:02:56]}  b5 {[%clk 0:03:00]} 6. f3 {[%clk 0:02:54]}  Nd7 {[%clk 0:03:00]} 7. g4 {[%clk 0:02:54]}  Bb7 {[%clk 0:02:58]} 8. h4 {[%clk 0:02:53]}  h5 {[%clk 0:02:59]} 9. gxh5 {[%clk 0:02:52]}  Rxh5 {[%clk 0:03:00]} 10. Bh3 {[%clk 0:02:50]}  Ngf6 {[%clk 0:02:59]} 11. Bg2 {[%clk 0:02:44]}  c5 {[%clk 0:02:58]} 12. Nge2 {[%clk 0:02:42]}  b4 {[%clk 0:02:56]} 13. Nd1 {[%clk 0:02:42]}  Qa5 {[%clk 0:02:51]} 14. Ng3 {[%clk 0:02:37]}  Rh8 {[%clk 0:02:51]} 15. Nf2 {[%clk 0:02:28]}  c4 {[%clk 0:02:48]} 16. Ng4 {[%clk 0:02:24]}  Nxg4 {[%clk 0:02:42]} 17. fxg4 {[%clk 0:02:22]}  c3 {[%clk 0:02:43]} 18. bxc3 {[%clk 0:02:20]}  bxc3 {[%clk 0:02:44]} 19. Qd3 {[%clk 0:02:20]}  Bc6 {[%clk 0:02:37]} 20. h5 {[%clk 0:02:16]}  Bb5 {[%clk 0:02:35]} 21. Qd1 {[%clk 0:02:14]}  Nb6 {[%clk 0:02:28]} 22. hxg6 {[%clk 0:01:49]}  Rxh1+ {[%clk 0:02:27]} 23. Bxh1 {[%clk 0:01:46]}  fxg6 {[%clk 0:02:27]} 24. a4 {[%clk 0:01:41]}  Bc6 {[%clk 0:02:12]} 25. d5 {[%clk 0:01:36]}  Bd7 {[%clk 0:02:11]} 26. Qd3 {[%clk 0:01:28]}  Nxa4 {[%clk 0:02:01]} 27. Bd4 {[%clk 0:01:27]}  Bb5 {[%clk 0:02:01]} 28. Qe3 {[%clk 0:01:23]}  Be5 {[%clk 0:01:48]} 29. Bxe5 {[%clk 0:01:20]}  dxe5 {[%clk 0:01:48]} 30. Qg5 {[%clk 0:01:16]}  Qb6 {[%clk 0:01:47]} 31. Nf1 {[%clk 0:00:19]}  O-O-O {[%clk 0:01:34]} 32. Qxe7 {[%clk 0:00:16]}  Qg1 {[%clk 0:01:26]} 33. O-O-O {[%clk 0:00:14]}  Bxf1 {[%clk 0:01:19]} 34. Qe6+ {[%clk 0:00:13]}  Rd7 {[%clk 0:01:16]} 35. Qc6+ {[%clk 0:00:12]}  Rc7 {[%clk 0:01:15]} 36. Qxa4 {[%clk 0:00:07]}  Qe3+ {[%clk 0:01:15]} 37. Kb1 {[%clk 0:00:04]}  Qb6+ {[%clk 0:01:15]} 38. Qb3 {[%clk 0:00:03]}  Qxb3+ {[%clk 0:01:16]} 39. cxb3 {[%clk 0:00:03]}  c2+ {[%clk 0:01:17]} 40. Kc1 {[%clk 0:00:03]}  cxd1=Q+ {[%clk 0:01:18]} 41. Kxd1 {[%clk 0:00:04]}  Bb5 {[%clk 0:01:18]} 42. g5 {[%clk 0:00:04]}  Rh7 {[%clk 0:01:18]} 43. Bf3 {[%clk 0:00:04]}  Rh4 {[%clk 0:01:19]} 44. Kd2 {[%clk 0:00:02]}  Kd7 {[%clk 0:01:19]} 45. Ke3 {[%clk 0:00:03]}  Kd6 {[%clk 0:01:19]} 46. Be2 {[%clk 0:00:03]}  Bxe2 {[%clk 0:01:19]} 47. Kxe2 {[%clk 0:00:04]}  Rxe4+ {[%clk 0:01:20]} 0-1


[Site "https://www.chess.com"]

[Event "Early Titled Tuesday Blitz | February 8 2022"]
[White "Mohammad Fahad, Rahman"]
[Black "Eynullayev, Altay"]
[WhiteFideId "10207791"]
[BlackFideId "13413562"]
[WhiteElo "2323"]
[BlackElo "2079"]
[Result "0-1"]
[Round "09"]
[TimeControl "180+1"]
[Date "2022.02.08"]
[WhiteClock "0:00:18"]
[BlackClock "0:00:04"]

1. e4 {[%clk 0:03:00]}  c5 {[%clk 0:02:58]} 2. Nf3 {[%clk 0:02:59]}  e6 {[%clk 0:02:58]} 3. d4 {[%clk 0:02:58]}  cxd4 {[%clk 0:02:59]} 4. Nxd4 {[%clk 0:02:59]}  Nc6 {[%clk 0:02:59]} 5. Nc3 {[%clk 0:02:59]}  a6 {[%clk 0:03:00]} 6. Be3 {[%clk 0:02:59]}  Nf6 {[%clk 0:02:57]} 7. f4 {[%clk 0:02:37]}  Bb4 {[%clk 0:02:54]} 8. Bd3 {[%clk 0:02:37]}  e5 {[%clk 0:02:01]} 9. Nxc6 {[%clk 0:02:32]}  dxc6 {[%clk 0:02:02]} 10. fxe5 {[%clk 0:02:29]}  Ng4 {[%clk 0:02:00]} 11. Qd2 {[%clk 0:02:09]}  Nxe3 {[%clk 0:01:54]} 12. Qxe3 {[%clk 0:02:09]}  Qe7 {[%clk 0:01:55]} 13. Qg3 {[%clk 0:02:06]}  Bxc3+ {[%clk 0:01:50]} 14. bxc3 {[%clk 0:02:06]}  O-O {[%clk 0:01:50]} 15. O-O {[%clk 0:02:03]}  Be6 {[%clk 0:01:50]} 16. Kh1 {[%clk 0:01:54]}  Qc5 {[%clk 0:01:45]} 17. a4 {[%clk 0:01:38]}  Qxc3 {[%clk 0:01:42]} 18. a5 {[%clk 0:01:38]}  Rad8 {[%clk 0:01:40]} 19. Rfb1 {[%clk 0:01:20]}  Rd4 {[%clk 0:01:31]} 20. Qe1 {[%clk 0:01:08]}  Qxe1+ {[%clk 0:01:19]} 21. Rxe1 {[%clk 0:01:09]}  Re8 {[%clk 0:01:18]} 22. Reb1 {[%clk 0:01:01]}  Bc8 {[%clk 0:01:18]} 23. Kg1 {[%clk 0:00:52]}  Rxe5 {[%clk 0:01:16]} 24. Kf2 {[%clk 0:00:52]}  h5 {[%clk 0:01:05]} 25. g3 {[%clk 0:00:50]}  Rd6 {[%clk 0:01:04]} 26. Ke3 {[%clk 0:00:44]}  Rde6 {[%clk 0:00:56]} 27. Kd4 {[%clk 0:00:37]}  Re7 {[%clk 0:00:56]} 28. Rb6 {[%clk 0:00:33]}  Kf8 {[%clk 0:00:49]} 29. h4 {[%clk 0:00:18]}  Ke8 {[%clk 0:00:47]} 30. Kc3 {[%clk 0:00:16]}  Kd8 {[%clk 0:00:47]} 31. Rbb1 {[%clk 0:00:15]}  Kc7 {[%clk 0:00:47]} 32. Rf1 {[%clk 0:00:15]}  Bg4 {[%clk 0:00:39]} 33. Rf4 {[%clk 0:00:15]}  f6 {[%clk 0:00:36]} 34. Kd4 {[%clk 0:00:15]}  Rd7+ {[%clk 0:00:35]} 35. Ke3 {[%clk 0:00:15]}  Rc5 {[%clk 0:00:34]} 36. Ra3 {[%clk 0:00:14]}  Re7 {[%clk 0:00:34]} 37. Rf1 {[%clk 0:00:14]}  Ree5 {[%clk 0:00:34]} 38. Rfa1 {[%clk 0:00:15]}  Re6 {[%clk 0:00:24]} 39. Kd4 {[%clk 0:00:15]}  Rce5 {[%clk 0:00:23]} 40. Kc3 {[%clk 0:00:14]}  Rd6 {[%clk 0:00:22]} 41. Rf1 {[%clk 0:00:14]}  Rc5+ {[%clk 0:00:21]} 42. Kd2 {[%clk 0:00:15]}  Rd4 {[%clk 0:00:20]} 43. Ke3 {[%clk 0:00:14]}  Rb4 {[%clk 0:00:20]} 44. Raa1 {[%clk 0:00:13]}  Rb2 {[%clk 0:00:19]} 45. Kd4 {[%clk 0:00:13]}  Kd6 {[%clk 0:00:16]} 46. Rf4 {[%clk 0:00:09]}  Rb4+ {[%clk 0:00:16]} 47. Ke3 {[%clk 0:00:10]}  Re5 {[%clk 0:00:16]} 48. Kd2 {[%clk 0:00:09]}  Rd4 {[%clk 0:00:14]} 49. Kc3 {[%clk 0:00:09]}  Kc5 {[%clk 0:00:14]} 50. Rb1 {[%clk 0:00:08]}  Rd7 {[%clk 0:00:14]} 51. Rff1 {[%clk 0:00:07]}  Kd6 {[%clk 0:00:14]} 52. Ra1 {[%clk 0:00:07]}  Kc7 {[%clk 0:00:14]} 53. Rf4 {[%clk 0:00:07]}  Rde7 {[%clk 0:00:13]} 54. Ra4 {[%clk 0:00:07]}  Rc5+ {[%clk 0:00:12]} 55. Kd4 {[%clk 0:00:07]}  Ree5 {[%clk 0:00:13]} 56. Rb4 {[%clk 0:00:04]}  Rxa5 {[%clk 0:00:13]} 57. Rf1 {[%clk 0:00:05]}  c5+ {[%clk 0:00:11]} 58. Kc3 {[%clk 0:00:02]}  cxb4+ {[%clk 0:00:12]} 59. Kxb4 {[%clk 0:00:03]}  Rac5 {[%clk 0:00:12]} 60. c4 {[%clk 0:00:03]}  Bd7 {[%clk 0:00:12]} 61. Kc3 {[%clk 0:00:03]}  b5 {[%clk 0:00:11]} 62. Kd4 {[%clk 0:00:04]}  bxc4 {[%clk 0:00:11]} 63. Bxc4 {[%clk 0:00:05]}  Bb5 {[%clk 0:00:11]} 64. Rc1 {[%clk 0:00:05]}  Rxc4+ {[%clk 0:00:10]} 65. Rxc4+ {[%clk 0:00:05]}  Bxc4 {[%clk 0:00:11]} 66. Kxc4 {[%clk 0:00:06]}  Rxe4+ {[%clk 0:00:12]} 67. Kd5 {[%clk 0:00:07]}  Rg4 {[%clk 0:00:13]} 68. Kc5 {[%clk 0:00:07]}  a5 {[%clk 0:00:13]} 69. Kd5 {[%clk 0:00:08]}  a4 {[%clk 0:00:13]} 70. Ke6 {[%clk 0:00:09]}  a3 {[%clk 0:00:14]} 71. Kf7 {[%clk 0:00:10]}  a2 {[%clk 0:00:14]} 72. Ke6 {[%clk 0:00:10]}  a1=Q {[%clk 0:00:15]} 73. Kf5 {[%clk 0:00:11]}  Qa5+ {[%clk 0:00:15]} 74. Ke6 {[%clk 0:00:11]}  Re4+ {[%clk 0:00:14]} 75. Kf7 {[%clk 0:00:12]}  Qd5+ {[%clk 0:00:13]} 76. Kg6 {[%clk 0:00:13]}  Qe5 {[%clk 0:00:11]} 77. Kh7 {[%clk 0:00:14]}  Qf5+ {[%clk 0:00:11]} 78. Kg8 {[%clk 0:00:14]}  Re8+ {[%clk 0:00:10]} 79. Kf7 {[%clk 0:00:14]}  Qe6+ {[%clk 0:00:08]} 80. Kg6 {[%clk 0:00:15]}  f5+ {[%clk 0:00:06]} 81. Kg5 {[%clk 0:00:15]}  Qf6+ {[%clk 0:00:05]} 82. Kf4 {[%clk 0:00:15]}  Re4+ {[%clk 0:00:05]} 83. Kf3 {[%clk 0:00:16]}  Qc3+ {[%clk 0:00:05]} 84. Kg2 {[%clk 0:00:17]}  Re2+ {[%clk 0:00:06]} 85. Kh1 {[%clk 0:00:18]}  Qe1# {[%clk 0:00:04]} 0-1


[Site "https://www.chess.com"]

[Event "Early Titled Tuesday Blitz | February 8 2022"]
[White "Moroni, Luca Jr"]
[Black "Shimelkov, Vasiliy"]
[WhiteFideId "865834"]
[BlackFideId "13701630"]
[WhiteElo "2573"]
[BlackElo "2073"]
[Result "1-0"]
[Round "09"]
[TimeControl "180+1"]
[Date "2022.02.08"]
[WhiteClock "0:01:19"]
[BlackClock "0:01:06"]

1. d4 {[%clk 0:03:00]}  d5 {[%clk 0:02:59]} 2. Bf4 {[%clk 0:02:59]}  e6 {[%clk 0:02:58]} 3. e3 {[%clk 0:03:00]}  Nf6 {[%clk 0:02:58]} 4. Nf3 {[%clk 0:03:00]}  Be7 {[%clk 0:02:56]} 5. Nbd2 {[%clk 0:02:59]}  O-O {[%clk 0:02:56]} 6. Bd3 {[%clk 0:02:56]}  c5 {[%clk 0:02:56]} 7. dxc5 {[%clk 0:02:52]}  Bxc5 {[%clk 0:02:50]} 8. O-O {[%clk 0:02:51]}  Nc6 {[%clk 0:02:49]} 9. Qe2 {[%clk 0:02:44]}  a6 {[%clk 0:02:47]} 10. c4 {[%clk 0:02:43]}  b6 {[%clk 0:02:46]} 11. Rac1 {[%clk 0:02:42]}  Bb7 {[%clk 0:02:45]} 12. Bb1 {[%clk 0:02:41]}  Qe7 {[%clk 0:02:42]} 13. Rfd1 {[%clk 0:02:40]}  e5 {[%clk 0:02:38]} 14. Bg5 {[%clk 0:02:39]}  e4 {[%clk 0:02:35]} 15. Ne1 {[%clk 0:02:31]}  d4 {[%clk 0:02:26]} 16. Nxe4 {[%clk 0:02:29]}  dxe3 {[%clk 0:02:12]} 17. fxe3 {[%clk 0:02:29]}  h6 {[%clk 0:02:10]} 18. Nxf6+ {[%clk 0:02:27]}  gxf6 {[%clk 0:02:11]} 19. Bxh6 {[%clk 0:02:25]}  Ne5 {[%clk 0:02:08]} 20. Qh5 {[%clk 0:02:10]}  Ng6 {[%clk 0:01:40]} 21. Bxg6 {[%clk 0:02:05]}  Bxe3+ {[%clk 0:01:40]} 22. Bxe3 {[%clk 0:01:57]}  Qxe3+ {[%clk 0:01:40]} 23. Kh1 {[%clk 0:01:57]}  fxg6 {[%clk 0:01:27]} 24. Qxg6+ {[%clk 0:01:58]}  Kh8 {[%clk 0:01:27]} 25. Rd7 {[%clk 0:01:26]}  Bxg2+ {[%clk 0:01:24]} 26. Kxg2 {[%clk 0:01:25]}  Qe2+ {[%clk 0:01:19]} 27. Kg1 {[%clk 0:01:21]}  Qe3+ {[%clk 0:01:06]} 28. Kh1 {[%clk 0:01:19]} 1-0


[Site "https://www.chess.com"]

[Event "Early Titled Tuesday Blitz | February 8 2022"]
[White "Muradov, Soltan"]
[Black "Brunner, Nicolas"]
[WhiteFideId "14002108"]
[BlackFideId "620246"]
[WhiteElo "1854"]
[BlackElo "2372"]
[Result "1/2-1/2"]
[Round "09"]
[TimeControl "180+1"]
[Date "2022.02.08"]
[WhiteClock "0:00:06"]
[BlackClock "0:00:20"]

1. Nf3 {[%clk 0:03:00]}  c5 {[%clk 0:02:59]} 2. c4 {[%clk 0:03:00]}  Nc6 {[%clk 0:02:58]} 3. e3 {[%clk 0:03:00]}  g6 {[%clk 0:02:46]} 4. Nc3 {[%clk 0:02:58]}  Nf6 {[%clk 0:02:36]} 5. b3 {[%clk 0:02:58]}  Bg7 {[%clk 0:02:36]} 6. Bb2 {[%clk 0:02:58]}  O-O {[%clk 0:02:35]} 7. Be2 {[%clk 0:02:56]}  d5 {[%clk 0:02:35]} 8. Nxd5 {[%clk 0:02:50]}  Nxd5 {[%clk 0:02:35]} 9. Bxg7 {[%clk 0:02:50]}  Nxe3 {[%clk 0:02:31]} 10. fxe3 {[%clk 0:02:51]}  Kxg7 {[%clk 0:02:31]} 11. d4 {[%clk 0:02:50]}  cxd4 {[%clk 0:02:28]} 12. exd4 {[%clk 0:02:51]}  Qa5+ {[%clk 0:02:27]} 13. Qd2 {[%clk 0:02:48]}  Qxd2+ {[%clk 0:02:24]} 14. Kxd2 {[%clk 0:02:48]}  Bg4 {[%clk 0:02:19]} 15. Kc3 {[%clk 0:02:37]}  e5 {[%clk 0:02:13]} 16. dxe5 {[%clk 0:02:36]}  Nxe5 {[%clk 0:02:10]} 17. Nxe5 {[%clk 0:02:33]}  Bxe2 {[%clk 0:02:10]} 18. Rae1 {[%clk 0:02:28]}  Bh5 {[%clk 0:01:55]} 19. g4 {[%clk 0:02:28]}  f6 {[%clk 0:01:54]} 20. gxh5 {[%clk 0:02:27]}  fxe5 {[%clk 0:01:54]} 21. Rxe5 {[%clk 0:02:26]}  Rf3+ {[%clk 0:01:53]} 22. Kb4 {[%clk 0:02:26]}  Raf8 {[%clk 0:01:47]} 23. hxg6 {[%clk 0:02:20]}  hxg6 {[%clk 0:01:46]} 24. Re7+ {[%clk 0:02:18]}  R8f7 {[%clk 0:01:46]} 25. Re6 {[%clk 0:01:59]}  Rh3 {[%clk 0:01:31]} 26. Rg1 {[%clk 0:01:57]}  Rf6 {[%clk 0:01:31]} 27. Re7+ {[%clk 0:01:49]}  Rf7 {[%clk 0:01:31]} 28. Re6 {[%clk 0:01:47]}  Rf6 {[%clk 0:01:31]} 29. Re7+ {[%clk 0:01:47]}  Rf7 {[%clk 0:01:31]} 30. Rxf7+ {[%clk 0:01:47]}  Kxf7 {[%clk 0:01:31]} 31. Rg2 {[%clk 0:01:48]}  Kf6 {[%clk 0:01:25]} 32. a4 {[%clk 0:01:46]}  b6 {[%clk 0:01:16]} 33. Rf2+ {[%clk 0:01:29]}  Ke5 {[%clk 0:01:13]} 34. Rb2 {[%clk 0:00:40]}  Kd6 {[%clk 0:01:13]} 35. a5 {[%clk 0:00:37]}  Kc7 {[%clk 0:01:07]} 36. a6 {[%clk 0:00:32]}  Rh5 {[%clk 0:00:55]} 37. Rg2 {[%clk 0:00:30]}  Ra5 {[%clk 0:00:49]} 38. Rxg6 {[%clk 0:00:29]}  Rxa6 {[%clk 0:00:49]} 39. Rg7+ {[%clk 0:00:26]}  Kc6 {[%clk 0:00:45]} 40. Rg6+ {[%clk 0:00:20]}  Kb7 {[%clk 0:00:42]} 41. h4 {[%clk 0:00:16]}  Ra2 {[%clk 0:00:42]} 42. h5 {[%clk 0:00:15]}  Rh2 {[%clk 0:00:42]} 43. h6 {[%clk 0:00:15]}  a6 {[%clk 0:00:39]} 44. Rg7+ {[%clk 0:00:15]}  Kc6 {[%clk 0:00:39]} 45. h7 {[%clk 0:00:15]}  Rh3 {[%clk 0:00:38]} 46. Ka3 {[%clk 0:00:12]}  b5 {[%clk 0:00:30]} 47. cxb5+ {[%clk 0:00:12]}  Kxb5 {[%clk 0:00:26]} 48. Rg5+ {[%clk 0:00:11]}  Kb6 {[%clk 0:00:25]} 49. Rg7 {[%clk 0:00:12]}  Kb5 {[%clk 0:00:24]} 50. Kb2 {[%clk 0:00:11]}  a5 {[%clk 0:00:22]} 51. Kc2 {[%clk 0:00:11]}  Kb4 {[%clk 0:00:21]} 52. Rg4+ {[%clk 0:00:11]}  Kb5 {[%clk 0:00:20]} 53. Rg7 {[%clk 0:00:10]}  Kb4 {[%clk 0:00:20]} 54. Rg4+ {[%clk 0:00:06]}  Kb5 {[%clk 0:00:20]} 55. Rg7 {[%clk 0:00:06]} 1/2-1/2


[Site "https://www.chess.com"]

[Event "Early Titled Tuesday Blitz | February 8 2022"]
[White "Navalgund, Niranjan"]
[Black "Rudzinska, Michalina"]
[WhiteFideId "5030854"]
[BlackFideId "1172883"]
[WhiteElo "2290"]
[BlackElo "1904"]
[Result "0-1"]
[Round "09"]
[TimeControl "180+1"]
[Date "2022.02.08"]
[WhiteClock "0:02:05"]
[BlackClock "0:01:33"]

1. e4 {[%clk 0:02:53]}  a6 {[%clk 0:02:56]} 2. Bc4 {[%clk 0:02:52]}  e6 {[%clk 0:02:53]} 3. e5 {[%clk 0:02:50]}  d6 {[%clk 0:02:45]} 4. Nf3 {[%clk 0:02:50]}  dxe5 {[%clk 0:02:44]} 5. Nxe5 {[%clk 0:02:50]}  Qd4 {[%clk 0:02:40]} 6. Qe2 {[%clk 0:02:50]}  Bd6 {[%clk 0:02:37]} 7. Nf3 {[%clk 0:02:47]}  Qg4 {[%clk 0:02:33]} 8. O-O {[%clk 0:02:47]}  Nf6 {[%clk 0:02:32]} 9. d3 {[%clk 0:02:47]}  Nbd7 {[%clk 0:02:26]} 10. h3 {[%clk 0:02:46]}  Qg6 {[%clk 0:02:23]} 11. Nc3 {[%clk 0:02:40]}  O-O {[%clk 0:02:22]} 12. Ne4 {[%clk 0:02:36]}  Nxe4 {[%clk 0:02:19]} 13. dxe4 {[%clk 0:02:36]}  b5 {[%clk 0:02:15]} 14. Bd3 {[%clk 0:02:36]}  Ne5 {[%clk 0:02:14]} 15. Nxe5 {[%clk 0:02:36]}  Bxe5 {[%clk 0:02:15]} 16. f4 {[%clk 0:02:37]}  Bd4+ {[%clk 0:02:14]} 17. Kh1 {[%clk 0:02:37]}  Bb7 {[%clk 0:02:13]} 18. f5 {[%clk 0:02:37]}  exf5 {[%clk 0:02:13]} 19. exf5 {[%clk 0:02:38]}  Qc6 {[%clk 0:02:11]} 20. c3 {[%clk 0:02:35]}  Rfe8 {[%clk 0:02:10]} 21. Qc2 {[%clk 0:02:35]}  Bc5 {[%clk 0:02:00]} 22. f6 {[%clk 0:02:32]}  g6 {[%clk 0:01:58]} 23. Bh6 {[%clk 0:02:32]}  Rad8 {[%clk 0:01:57]} 24. Rad1 {[%clk 0:02:29]}  Qe6 {[%clk 0:01:52]} 25. Kh2 {[%clk 0:02:19]}  Bd6+ {[%clk 0:01:37]} 26. Kh1 {[%clk 0:02:08]}  Qxh3+ {[%clk 0:01:35]} 27. Kg1 {[%clk 0:02:08]}  Bc5+ {[%clk 0:01:33]} 28. Rf2 {[%clk 0:02:05]} 0-1


[Site "https://www.chess.com"]